bitfinex-derivatives/quotes_BTCF0:USTF0_20251202
["timestamp","ask_amount","ask_price","bid_price","bid_amount"]
[1764667384391,0.1985162,86840.0,86839.0,0.4519]
[1764667385093,0.187,86840.0,86839.0,0.4519]
[1764667385598,0.08272691,86852.0,86839.0,0.3648]
[1764667385804,0.09234695,86855.0,86854.0,0.08982]
[1764667386105,0.18662,86852.0,86851.0,0.3608]
[1764667386802,0.18662,86852.0,86851.0,0.45062]
[1764667387401,0.09074,86852.0,86851.0,0.45062]
[1764667387703,0.18662,86852.0,86851.0,0.45062]
[1764667388402,0.18662,86852.0,86851.0,0.45162]
[1764667392205,0.18286912,86855.0,86854.0,0.08982]
[1764667392500,0.05654,86856.0,86851.0,0.3618]
[1764667392501,0.06211029,86856.0,86855.0,0.08982]
[1764667392805,0.15285029,86858.0,86857.0,0.08982]
[1764667393009,0.34161744,86858.0,86857.0,0.08982]
[1764667393995,0.36223406,86858.0,86857.0,0.08982]
[1764667394297,0.27950715,86858.0,86857.0,0.08982]
[1764667394693,0.29102095,86858.0,86857.0,0.08982]
[1764667395200,0.27950715,86858.0,86857.0,0.08982]
[1764667395599,0.27950715,86858.0,86857.0,0.09082]
[1764667396995,0.27950715,86858.0,86857.0,0.08982]
[1764667397303,0.27950715,86858.0,86857.0,0.09082]
[1764667398306,0.27950715,86858.0,86857.0,0.08982]
[1764667400605,0.18662,86858.0,86857.0,0.08982]
[1764667401001,0.26934691,86858.0,86857.0,0.08982]
[1764667401502,0.18662,86858.0,86857.0,0.09082]
[1764667402202,0.09074,86858.0,86857.0,0.09082]
[1764667403703,0.09074,86858.0,86857.0,0.08982]
[1764667403904,0.09074,86858.0,86857.0,0.09082]
[1764667404506,0.06199818,86862.0,86861.0,0.08982]
[1764667404712,0.0115133,86862.0,86860.0,0.0115135]
[1764667405009,0.0115133,86862.0,86861.0,0.08982]
[1764667405212,0.01168522,86863.0,86862.0,0.08982]
[1764667406004,0.19830522,86863.0,86862.0,0.08982]
[1764667407110,0.09091202,86863.0,86862.0,0.45062]
[1764667407311,0.09091202,86863.0,86862.0,0.45162]
[1764667407707,0.18679202,86863.0,86862.0,0.45062]
[1764667407907,0.18679202,86863.0,86862.0,0.45162]
[1764667408302,0.18679202,86863.0,86862.0,0.45062]
[1764667408612,0.18679202,86863.0,86862.0,0.45262]
[1764667409407,0.18679202,86863.0,86862.0,0.3628]
[1764667409808,0.18679202,86863.0,86862.0,0.45062]
[1764667410008,0.18679202,86863.0,86862.0,0.45162]
[1764667410709,0.18679202,86863.0,86862.0,0.45062]
[1764667412919,0.19830512,86863.0,86862.0,0.45062]
[1764667413307,0.18679202,86863.0,86862.0,0.45062]
[1764667413508,0.18679202,86863.0,86862.0,0.45162]
[1764667413704,0.19830512,86863.0,86862.0,0.45162]
[1764667414309,0.18679202,86863.0,86862.0,0.45162]
[1764667414511,0.00017202,86863.0,86862.0,0.45162]
[1764667416619,0.00017202,86863.0,86862.0,0.45062]
[1764667416823,0.00017202,86863.0,86862.0,0.45162]
[1764667417019,0.0115124,86869.0,86868.0,0.03262]
[1764667417226,0.05,86871.0,86870.0,0.0441322]
[1764667418526,0.05,86871.0,86870.0,0.0451322]
[1764667419526,0.04008064,86871.0,86870.0,0.0451322]
[1764667421125,0.20649064,86871.0,86870.0,0.03362]
[1764667421624,0.20649064,86871.0,86870.0,0.55286]
[1764667422913,0.20649064,86871.0,86870.0,0.55186]
[1764667423419,0.11974064,86871.0,86870.0,0.55186]
[1764667423722,0.11974064,86871.0,86870.0,0.55286]
[1764667424025,0.04008064,86871.0,86870.0,0.55286]
[1764667424731,0.02289744,86871.0,86870.0,0.55286]
[1764667425727,0.02289744,86871.0,86870.0,0.55186]
[1764667425923,0.02289744,86871.0,86870.0,0.55286]
[1764667426135,0.02289744,86871.0,86870.0,0.03362]
[1764667426430,0.18930744,86871.0,86870.0,0.56898]
[1764667426622,0.02289744,86871.0,86870.0,0.56898]
[1764667426825,0.10255744,86871.0,86870.0,0.56898]
[1764667427425,0.18930744,86871.0,86870.0,0.001]
[1764667427626,0.18930744,86871.0,86870.0,0.5364]
[1764667428223,0.18930744,86871.0,86870.0,0.001]
[1764667429228,0.16641,86868.0,86867.0,0.3608]
[1764667429539,0.16641,86868.0,86867.0,0.39342]
[1764667430720,0.18930744,86871.0,86870.0,0.03262]
[1764667431224,0.10355744,86871.0,86870.0,0.03262]
[1764667431623,0.19030744,86871.0,86870.0,0.03262]
[1764667431827,0.18930744,86871.0,86870.0,0.03262]
[1764667432032,0.16641,86868.0,86867.0,0.39342]
[1764667433326,0.07966,86868.0,86867.0,0.39342]
[1764667433525,0.18930744,86871.0,86870.0,0.03262]
[1764667434241,0.11406964,86871.0,86870.0,0.03262]
[1764667435233,0.11406964,86871.0,86870.0,0.56802]
[1764667435735,0.20081964,86871.0,86870.0,1.29062]
[1764667437139,0.20081964,86871.0,86870.0,1.28962]
[1764667437342,0.11406964,86871.0,86870.0,1.28962]
[1764667437921,0.02289744,86871.0,86870.0,1.28962]
[1764667438638,0.08495681,86871.0,86870.0,1.28962]
[1764667439640,0.02289744,86871.0,86870.0,1.28962]
[1764667439842,0.02289744,86871.0,86870.0,1.29062]
[1764667440442,0.16461681,86871.0,86870.0,1.29062]
[1764667440741,0.25136681,86871.0,86870.0,0.75522]
[1764667440929,0.25136681,86871.0,86870.0,1.29058]
[1764667441130,0.16461681,86871.0,86870.0,1.29058]
[1764667441331,0.08495681,86871.0,86870.0,1.29058]
[1764667442135,0.02289744,86871.0,86870.0,1.30689]
[1764667442731,0.02289744,86871.0,86870.0,1.29058]
[1764667443231,0.02289744,86871.0,86870.0,1.69058]
[1764667444045,0.02289744,86871.0,86870.0,2.19058]
[1764667446239,0.18373744,86871.0,86870.0,1.25522]
[1764667446427,0.18373744,86871.0,86870.0,1.79054]
[1764667447435,0.18373744,86871.0,86870.0,1.25796]
[1764667448338,0.24578134,86871.0,86870.0,1.25796]
[1764667448733,0.24578134,86871.0,86870.0,1.25696]
[1764667448933,0.18373744,86871.0,86870.0,1.25796]
[1764667449247,0.24577824,86871.0,86870.0,1.25796]
[1764667449439,0.24577824,86871.0,86870.0,1.25696]
[1764667449644,0.16534824,86871.0,86870.0,1.25796]
[1764667449834,0.10330744,86871.0,86870.0,1.25796]
[1764667450037,0.10330744,86871.0,86870.0,1.25696]
[1764667450340,0.02289744,86871.0,86870.0,1.25796]
[1764667450548,0.18373744,86871.0,86870.0,1.25796]
[1764667451341,0.10330744,86871.0,86870.0,1.25796]
[1764667451544,0.02289744,86871.0,86870.0,1.25796]
[1764667453751,0.02289744,86871.0,86870.0,1.75796]
[1764667453953,0.02289744,86871.0,86870.0,1.758]
[1764667457139,0.00017272,86879.0,86878.0,0.0115111]
[1764667457344,0.0638094,86892.0,86891.0,0.0115094]
[1764667457642,0.1442194,86892.0,86891.0,0.9077094]
[1764667459256,0.1442193,86892.0,86891.0,0.9077094]
[1764667459443,0.2246493,86892.0,86891.0,0.8962]
[1764667460649,0.21314,86892.0,86891.0,0.8962]
[1764667461856,0.13271,86892.0,86891.0,0.8962]
[1764667462153,0.21314,86892.0,86891.0,0.8962]
[1764667462358,0.0115091,86894.0,86892.0,0.0115093]
[1764667462359,0.0919191,86894.0,86892.0,0.0115093]
[1764667462560,0.0919191,86894.0,86893.0,0.3608]
[1764667462758,0.1723491,86894.0,86893.0,0.3608]
[1764667463361,0.16084,86894.0,86893.0,0.3608]
[1764667463671,0.13279,86898.0,86897.0,0.0115086]
[1764667464169,0.05238,86904.0,86897.0,0.0115086]
[1764667464470,0.16084,86909.0,86908.0,0.0115072]
[1764667464770,0.16084,86909.0,86908.0,0.9075872]
[1764667465769,0.16084,86909.0,86908.0,2.4075872]
[1764667467367,0.16084,86909.0,86908.0,2.4095872]
[1764667467871,0.16084,86909.0,86908.0,2.4075872]
[1764667468070,0.16084,86909.0,86908.0,2.4095872]
[1764667468471,0.16084,86909.0,86908.0,2.4075872]
[1764667468655,0.08041,86909.0,86908.0,2.4095872]
[1764667468862,0.13279,86912.0,86911.0,0.0115068]
[1764667470174,0.05238,86912.0,86911.0,0.0115068]
[1764667470370,0.05238,86912.0,86908.0,2.39908]
[1764667470575,0.2247267,86912.0,86909.0,0.011507]
[1764667470874,0.21322,86912.0,86911.0,0.002]
[1764667471269,0.05238,86912.0,86911.0,0.002]
[1764667471459,0.05238,86912.0,86909.0,0.011507]
[1764667472870,0.011506,86917.0,86909.0,0.012507]
[1764667473075,0.091916,86917.0,86916.0,0.3723061]
[1764667473271,0.161816,86917.0,86916.0,0.9073861]
[1764667473677,0.15031,86917.0,86916.0,0.9073861]
[1764667474074,0.05238,86919.0,86916.0,0.9073861]
[1764667474271,0.12322,86919.0,86916.0,0.9073861]
[1764667474463,0.19312,86919.0,86916.0,0.9073861]
[1764667474668,0.14074,86917.0,86916.0,0.9073861]
[1764667474867,0.14074,86917.0,86916.0,0.9083861]
[1764667475071,0.14074,86917.0,86916.0,0.3618]
[1764667475271,0.14074,86917.0,86916.0,0.89692]
[1764667475572,0.14074,86917.0,86916.0,0.89792]
[1764667476079,0.14074,86917.0,86916.0,0.3628]
[1764667476273,0.14074,86917.0,86916.0,0.87796]
[1764667476474,0.14074,86917.0,86916.0,0.76896]
[1764667476775,0.14074,86917.0,86916.0,0.40816]
[1764667476977,0.14074,86917.0,86916.0,0.40616]
[1764667477576,0.14174,86917.0,86916.0,0.40516]
[1764667479872,0.152247,86909.0,86908.0,0.3608]
[1764667480877,0.152247,86909.0,86908.0,0.43011]
[1764667481082,0.152247,86909.0,86908.0,0.49927]
[1764667481481,0.14074,86909.0,86908.0,0.49927]
[1764667483379,0.0115065,86914.0,86910.0,0.13847]
[1764667483587,0.1522465,86914.0,86913.0,0.13847]
[1764667484871,0.1522465,86914.0,86913.0,0.13947]
[1764667486078,0.14074,86914.0,86913.0,0.13947]
[1764667486283,0.082346,86917.0,86916.0,0.13847]
[1764667486491,0.07084,86920.0,86919.0,0.18009]
[1764667486689,0.0823452,86923.0,86922.0,0.13847]
[1764667487187,0.1522452,86923.0,86922.0,0.13847]
[1764667489277,0.1522452,86923.0,86922.0,0.13947]
[1764667489986,0.1522452,86923.0,86922.0,0.001]
[1764667492382,0.14074,86921.0,86920.0,0.38768]
[1764667493184,0.1522461,86916.0,86915.0,0.3608]
[1764667493998,0.2143251,86916.0,86915.0,0.43011]
[1764667494185,0.2143251,86916.0,86915.0,0.49927]
[1764667494486,0.1444251,86916.0,86915.0,0.49927]
[1764667494686,0.062079,86917.0,86916.0,0.1499761]
[1764667494890,0.062079,86920.0,86919.0,0.18009]
[1764667495484,0.062079,86921.0,86920.0,0.1499756]
[1764667495886,0.062079,86923.0,86922.0,0.13847]
[1764667496081,0.062079,86923.0,86922.0,0.49927]
[1764667497295,0.0735837,86927.0,86925.0,0.13847]
[1764667497495,0.1444237,86927.0,86926.0,0.18009]
[1764667497693,0.05920239,86927.0,86926.0,0.7264748]
[1764667497996,0.0115025,86944.0,86943.0,0.13847]
[1764667498195,0.0823425,86944.0,86943.0,1.03427]
[1764667498693,0.1522425,86944.0,86943.0,1.03427]
[1764667499191,0.0115023,86945.0,86943.0,0.8958]
[1764667499388,0.1522418,86949.0,86948.0,0.13847]
[1764667499588,0.07084,86949.0,86948.0,0.13847]
[1764667500182,0.49331549,86980.0,86947.0,0.0531219]
[1764667500183,0.15359253,86966.0,86961.0,0.04162]
[1764667500381,0.14074,86966.0,86965.0,0.49927]
[1764667500591,0.14074,86966.0,86965.0,0.3608]
[1764667500796,0.1522406,86958.0,86957.0,0.3608]
[1764667500992,0.1522406,86958.0,86957.0,0.89596]
[1764667501191,0.14074,86958.0,86957.0,1.03443]
[1764667501381,0.0114994,86967.0,86957.0,0.89596]
[1764667501587,0.14074,86968.0,86967.0,0.13847]
[1764667502985,0.07084,86968.0,86967.0,0.13847]
[1764667503186,0.07484,86968.0,86967.0,0.13847]
[1764667504094,0.1619,86968.0,86967.0,0.13847]
[1764667504487,0.04659,86968.0,86967.0,0.5352]
[1764667504692,0.21606,86968.0,86967.0,0.5352]
[1764667504997,0.2275592,86968.0,86967.0,0.70655]
[1764667505183,0.1859692,86968.0,86967.0,0.17123]
[1764667505384,0.1859692,86968.0,86967.0,0.70651]
[1764667505997,0.1859692,86968.0,86967.0,0.17123]
[1764667506198,0.1859692,86968.0,86967.0,0.70647]
[1764667506498,0.2275592,86968.0,86967.0,0.70647]
[1764667507291,0.1859692,86968.0,86967.0,0.70647]
[1764667507600,0.17447,86968.0,86967.0,0.70647]
[1764667509794,0.17447,86968.0,86957.0,0.3608]
[1764667509795,0.20743,86968.0,86957.0,0.3608]
[1764667509995,0.1809706,86958.0,86957.0,0.44944]
[1764667510199,0.1809706,86958.0,86957.0,0.89592]
[1764667510401,0.1809706,86958.0,86957.0,1.06715]
[1764667511697,0.1809706,86958.0,86957.0,0.53203]
[1764667511900,0.1829706,86958.0,86957.0,0.53203]
[1764667512690,0.1839706,86958.0,86957.0,0.53203]
[1764667516293,0.1839706,86958.0,86957.0,0.98464]
[1764667517196,0.1839706,86958.0,86957.0,1.06723]
[1764667518500,0.1839706,86958.0,86957.0,0.896]
[1764667518701,0.1839706,86958.0,86957.0,0.3608]
[1764667518898,0.1839706,86958.0,86956.0,0.53512]
[1764667518899,0.16947,86957.0,86956.0,0.53512]
[1764667519801,0.1809708,86956.0,86955.0,0.00017251]
[1764667520504,0.1809708,86956.0,86955.0,0.08881251]
[1764667521208,0.1829708,86956.0,86955.0,0.08881251]
[1764667521907,0.1829708,86956.0,86955.0,0.00017251]
[1764667523595,0.1829708,86956.0,86955.0,0.08881251]
[1764667524201,0.1829708,86956.0,86955.0,0.17140251]
[1764667525498,0.1829708,86956.0,86955.0,0.00017251]
[1764667527418,0.24473382,86956.0,86955.0,0.00017251]
[1764667528496,0.1829708,86956.0,86955.0,0.00017251]
[1764667528697,0.1829708,86956.0,86955.0,0.17140251]
[1764667529315,0.1829708,86956.0,86955.0,0.08881251]
[1764667529607,0.1809708,86956.0,86955.0,0.08881251]
[1764667529812,0.1809708,86956.0,86955.0,0.00017251]
[1764667530406,0.1819708,86956.0,86955.0,0.00017251]
[1764667530606,0.1819708,86956.0,86955.0,0.17140251]
[1764667531002,0.17047,86956.0,86955.0,0.17140251]
[1764667531207,0.08441,86956.0,86955.0,0.17140251]
[1764667531710,0.001,86956.0,86955.0,0.70652251]
[1764667531914,0.001,86956.0,86955.0,1.06732251]
[1764667532911,0.0115001,86962.0,86961.0,0.15903]
[1764667533112,0.28557302,86973.0,86972.0,0.15447]
[1764667533320,0.22336162,86973.0,86972.0,0.15447]
[1764667533907,0.1615986,86973.0,86972.0,0.15447]
[1764667534906,0.1645986,86973.0,86972.0,0.15447]
[1764667535521,0.1655986,86973.0,86972.0,0.15447]
[1764667537204,0.1541,86973.0,86972.0,0.15447]
[1764667537507,0.004,86973.0,86972.0,0.15447]
[1764667538711,0.0154986,86973.0,86972.0,0.15447]
[1764667538909,0.004,86973.0,86972.0,0.15447]
[1764667540121,0.06593913,86973.0,86972.0,0.1659687]
[1764667540311,0.15874069,86984.0,86983.0,0.15447]
[1764667540618,0.23245069,86984.0,86983.0,1.05039]
[1764667540819,0.1501,86984.0,86983.0,1.05039]
[1764667541015,0.1615971,86984.0,86983.0,1.05039]
[1764667541217,0.08235069,86987.0,86986.0,0.15447]
[1764667541419,0.0114957,86995.0,86994.0,0.15447]
[1764667541619,0.23245069,86998.0,86997.0,0.15447]
[1764667541823,0.1501,86998.0,86997.0,0.15447]
[1764667543423,0.0114943,87006.0,87001.0,0.15447]
[1764667543624,0.08235069,87013.0,87010.0,0.19924]
[1764667543928,0.08235069,87013.0,87006.0,0.0114942]
[1764667543929,0.1615943,87005.0,87004.0,0.51527]
[1764667544225,0.19659,87017.0,87016.0,0.15447]
[1764667544418,0.2080828,87017.0,87016.0,0.15447]
[1764667544616,0.1501,87005.0,87004.0,0.51527]
[1764667544815,0.1501,87005.0,87004.0,1.05055]
[1764667545217,0.1501,87005.0,87004.0,0.51527]
[1764667545416,0.1501,87005.0,87004.0,1.05051]
[1764667545723,0.1501,87005.0,86970.0,0.14728288]
[1764667545724,0.0114955,86996.0,86995.0,1e-08]
[1764667545919,0.0114955,86996.0,86960.0,0.05733999]
[1764667545920,0.0115002,86961.0,86960.0,0.04734]
[1764667546309,0.0115002,86961.0,86960.0,0.12327]
[1764667546516,0.0115002,86961.0,86960.0,0.20181]
[1764667547011,0.0115002,86961.0,86960.0,0.04734]
[1764667547328,0.0115002,86961.0,86952.0,0.04751241]
[1764667547329,0.0115012,86953.0,86952.0,0.04751241]
[1764667547823,0.0115012,86953.0,86952.0,0.12344241]
[1764667548429,0.0115012,86953.0,86952.0,0.20198241]
[1764667548628,0.10259417,86953.0,86952.0,0.20198241]
[1764667548825,0.0115012,86953.0,86952.0,0.20198241]
[1764667554029,0.0115004,86959.0,86958.0,0.04734]
[1764667554230,0.01167047,86969.0,86968.0,0.15447]
[1764667554438,0.00017137,86969.0,86968.0,0.15447]
[1764667555435,0.00017137,86969.0,86968.0,0.69019]
[1764667556738,0.00017137,86969.0,86968.0,0.69119]
[1764667557134,0.00017137,86969.0,86968.0,0.15547]
[1764667557325,0.00017137,86969.0,86968.0,0.69119]
[1764667558850,0.00017137,86969.0,86968.0,0.69123]
[1764667559051,0.00017137,86969.0,86968.0,0.69023]
[1764667561248,0.00017137,86969.0,86968.0,0.15447]
[1764667561458,0.00017137,86969.0,86968.0,0.69011]
[1764667563143,0.00017137,86969.0,86968.0,0.15447]
[1764667563348,0.0115004,86959.0,86958.0,0.22733]
[1764667563544,0.0115012,86953.0,86944.0,0.04734]
[1764667563749,0.0115012,86953.0,86952.0,0.22750241]
[1764667565244,0.3608,86959.0,86952.0,0.04751241]
[1764667565450,0.0115004,86960.0,86959.0,0.17999]
[1764667567055,0.06178478,86973.0,86968.0,0.17999]
[1764667567248,0.37247047,86969.0,86968.0,0.17999]
[1764667567958,0.10568047,86969.0,86968.0,0.17999]
[1764667568458,0.01167047,86969.0,86968.0,0.17999]
[1764667569752,0.01167047,86969.0,86968.0,0.18099]
[1764667570456,0.19931047,86969.0,86968.0,0.18099]
[1764667571251,0.01167047,86969.0,86968.0,0.17999]
[1764667571560,0.01167047,86969.0,86968.0,0.18099]
[1764667571863,0.01167047,86969.0,86968.0,0.17999]
[1764667572362,0.10568047,86969.0,86968.0,0.17999]
[1764667574252,0.56011047,86969.0,86968.0,0.17999]
[1764667574457,0.56011047,86969.0,86968.0,0.09163]
[1764667575462,0.1991404,86959.0,86958.0,0.58646]
[1764667575656,0.1991404,86959.0,86930.0,0.0115041]
[1764667575657,0.1991412,86953.0,86952.0,0.00017241]
[1764667576450,0.0115012,86953.0,86952.0,0.22583241]
[1764667577263,0.08234859,86965.0,86952.0,0.22583241]
[1764667577446,0.0115011,86954.0,86953.0,0.17999]
[1764667578361,0.0115007,86958.0,86957.0,0.17999]
[1764667578566,0.1055107,86958.0,86957.0,0.17999]
[1764667578766,0.45498137,86969.0,86968.0,0.17999]
[1764667578957,0.37247047,86969.0,86968.0,0.17999]
[1764667579159,0.01167047,86969.0,86968.0,0.17999]
[1764667579462,0.10568047,86969.0,86968.0,0.17999]
[1764667579966,0.01167047,86969.0,86968.0,0.17999]
[1764667580362,0.10293574,86991.0,86990.0,0.17999]
[1764667580549,0.14411372,87006.0,87005.0,0.17999]
[1764667580754,0.0114898,87040.0,87008.0,0.17999]
[1764667580755,0.0114939,87009.0,87008.0,0.17999]
[1764667581058,0.15877268,87040.0,87005.0,0.71679]
[1764667581059,0.18764,87006.0,87005.0,0.71679]
[1764667581260,0.04596,87010.0,87009.0,0.17999]
[1764667581563,0.2336,87010.0,87009.0,0.17999]
[1764667581755,0.29547794,87010.0,87009.0,0.17999]
[1764667582165,0.29547794,87010.0,87005.0,0.5368]
[1764667582166,0.1991342,87006.0,87005.0,0.5368]
[1764667582354,0.18764,87005.0,87004.0,0.3608]
[1764667582556,0.18764,87005.0,87004.0,0.89752]
[1764667582950,0.18764,87005.0,87004.0,0.3608]
[1764667583361,0.18764,87005.0,87004.0,0.54079]
[1764667584554,0.2460937,87010.0,87009.0,0.17999]
[1764667584756,0.2450937,87010.0,87009.0,0.17999]
[1764667585662,0.2460937,87010.0,87009.0,0.17999]
[1764667586866,0.1991341,87007.0,87006.0,0.5366]
[1764667587257,0.1991341,87007.0,87006.0,0.71659]
[1764667587458,0.1991341,87007.0,87006.0,0.17999]
[1764667587662,0.18764,87002.0,87001.0,0.0001724]
[1764667587970,0.54844,87002.0,87001.0,0.0001724]
[1764667588368,0.54844,87002.0,87001.0,0.0918024]
[1764667588667,0.54844,87002.0,87001.0,0.0001724]
[1764667588964,0.1991363,86990.0,86977.0,0.3608]
[1764667589264,0.1991379,86978.0,86977.0,0.3608]
[1764667590363,0.18764,86978.0,86977.0,0.45243]
[1764667590569,0.18764,86978.0,86977.0,0.54079]
[1764667590759,0.13997,86985.0,86984.0,0.17999]
[1764667590960,0.00017239,86986.0,86985.0,0.17999]
[1764667591268,0.00017239,86986.0,86985.0,0.54079]
[1764667591469,0.18781239,86986.0,86985.0,0.54079]
[1764667591664,0.18781239,86986.0,86985.0,0.17999]
[1764667591970,0.18781239,86986.0,86985.0,0.09163]
[1764667592272,0.2369374,86982.0,86981.0,0.11636]
[1764667592868,0.22544,86982.0,86981.0,0.11636]
[1764667593165,0.22544,86982.0,86981.0,0.22571]
[1764667593869,0.22544,86982.0,86979.0,0.53652]
[1764667593870,0.00017239,86986.0,86985.0,0.22608]
[1764667594070,0.00017239,86986.0,86985.0,0.58688]
[1764667594872,0.00017239,86986.0,86985.0,1.12332]
[1764667597277,0.00017239,86986.0,86985.0,1.12432]
[1764667599769,0.00017239,86986.0,86985.0,1.17372]
[1764667605175,0.26567,87010.0,87009.0,0.22608]
[1764667605377,0.2771637,87010.0,87009.0,0.76228]
[1764667606276,0.2781637,87010.0,87009.0,0.76228]
[1764667606470,0.0124937,87010.0,87009.0,0.76228]
[1764667607066,0.2322037,87010.0,87009.0,0.76228]
[1764667607975,0.001,87010.0,87009.0,0.76228]
[1764667613279,0.5920016,87026.0,87025.0,0.22608]
[1764667613786,0.2312025,87019.0,87018.0,0.58688]
[1764667614091,0.2312025,87019.0,87018.0,1.1228]
[1764667614271,0.21971,87019.0,87018.0,1.1228]
[1764667614476,0.1193621,87023.0,87022.0,0.22608]
[1764667614676,0.2312021,87023.0,87022.0,0.22608]
[1764667615578,0.2312021,87023.0,87022.0,0.76196]
[1764667615779,0.2312021,87023.0,87022.0,0.22608]
[1764667616085,0.22071,87023.0,87022.0,0.76192]
[1764667616283,0.10887,87023.0,87022.0,0.76192]
[1764667616482,0.001,87023.0,87022.0,0.76192]
[1764667622083,0.22071,87023.0,87022.0,0.22608]
[1764667622289,0.22071,87023.0,87022.0,0.76176]
[1764667622890,0.22071,87023.0,87022.0,0.76172]
[1764667623490,0.001,87023.0,87022.0,0.76172]
[1764667624189,0.001,87023.0,87022.0,0.22608]
[1764667624392,0.001,87023.0,87022.0,0.76168]
[1764667627288,0.0114916,87026.0,87023.0,0.0114919]
[1764667627595,0.0114916,87026.0,87025.0,0.56875]
[1764667628093,0.2145516,87026.0,87025.0,1.10423]
[1764667628395,0.0114916,87026.0,87025.0,1.10423]
[1764667628891,0.08230721,87038.0,87037.0,0.20795]
[1764667629093,0.01149,87038.0,87037.0,1.06351]
[1764667629291,0.21455,87038.0,87037.0,0.56875]
[1764667629591,0.21455,87038.0,87037.0,1.10423]
[1764667630299,0.2786491,87045.0,87044.0,0.20795]
[1764667631583,0.2796491,87045.0,87044.0,0.20795]
[1764667632684,0.26816,87045.0,87044.0,0.20795]
[1764667635292,0.20406,87045.0,87044.0,0.20795]
[1764667635796,0.45841,87067.0,87066.0,0.20795]
[1764667635999,0.45841,87067.0,87066.0,0.61699]
[1764667636000,0.20306,87067.0,87066.0,0.61699]
[1764667636296,0.20306,87067.0,87066.0,0.63923]
[1764667636495,0.07054,87064.0,87060.0,0.10363]
[1764667636694,0.20306,87062.0,87061.0,0.63923]
[1764667636903,0.20306,87062.0,87061.0,0.74355]
[1764667637104,0.20306,87062.0,87061.0,0.20795]
[1764667637305,0.20306,87062.0,87061.0,0.74355]
[1764667637806,0.20406,87062.0,87061.0,0.74355]
[1764667638693,0.09861,87062.0,87061.0,0.74355]
[1764667639788,0.20306,87059.0,87058.0,0.1038023]
[1764667640100,0.20306,87059.0,87058.0,0.6392823]
[1764667640301,0.20306,87059.0,87058.0,0.7436023]
[1764667640802,0.20306,87059.0,87058.0,0.2081223]
[1764667640992,0.20306,87059.0,87058.0,0.7435623]
[1764667643106,0.20306,87059.0,87058.0,0.2081223]
[1764667643298,0.20306,87059.0,87058.0,0.7435223]
[1764667643499,0.20306,87059.0,87058.0,0.5355323]
[1764667644097,0.20306,87059.0,87058.0,0.5354923]
[1764667644598,0.20306,87059.0,87058.0,0.7434423]
[1764667644805,0.20306,87059.0,87058.0,0.5354923]
[1764667647704,0.20306,87059.0,87058.0,0.0001723]
[1764667648601,0.20306,87059.0,87058.0,0.1038023]
[1764667648802,0.20306,87059.0,87058.0,0.0001723]
[1764667649009,0.2145495,87042.0,87041.0,0.20795]
[1764667649195,0.2145495,87042.0,87041.0,0.74323]
[1764667649390,0.2145495,87042.0,87041.0,0.10363]
[1764667649600,0.2145495,87042.0,87041.0,0.53528]
[1764667649794,0.20306,87042.0,87041.0,0.74323]
[1764667650400,0.20306,87042.0,87041.0,0.74523]
[1764667651211,0.20306,87042.0,87041.0,0.20995]
[1764667651510,0.20306,87042.0,87041.0,0.74523]
[1764667652606,0.20306,87042.0,87041.0,0.002]
[1764667652811,0.24291,87008.0,87007.0,0.03069771]
[1764667653002,0.18645,86993.0,86992.0,0.11691619]
[1764667653204,0.18645,86990.0,86989.0,0.3608]
[1764667653401,0.0690161,86992.0,86987.0,0.00010113]
[1764667653402,0.18645,86988.0,86987.0,0.00010113]
[1764667653600,0.27777306,86988.0,86987.0,0.00010113]
[1764667654214,0.18645,86988.0,86987.0,0.00010113]
[1764667655208,0.18645,86988.0,86987.0,0.17248113]
[1764667655602,0.18645,86988.0,86987.0,0.00010113]
[1764667656100,0.18645,86988.0,86987.0,0.17248113]
[1764667656307,0.0114963,86990.0,86987.0,0.00010113]
[1764667656506,0.3608,86991.0,86990.0,0.17238]
[1764667656806,0.54725,86991.0,86990.0,0.17238]
[1764667658614,0.18645,86991.0,86990.0,0.53318]
[1764667659203,0.1979462,86991.0,86990.0,0.53318]
[1764667659808,0.18645,86991.0,86990.0,0.53318]
[1764667664608,0.0932024,86996.0,86995.0,0.17238]
[1764667664816,0.1981179,86996.0,86995.0,0.17238]
[1764667665706,0.1981179,86996.0,86995.0,0.08619]
[1764667665902,0.18645,86991.0,86990.0,0.53418]
[1764667666108,0.18645,86991.0,86990.0,0.53318]
[1764667667106,0.0001724,86996.0,86995.0,0.17238]
[1764667668719,0.0932024,86996.0,86995.0,0.17238]
[1764667668915,0.1866224,86996.0,86995.0,0.08619]
[1764667669115,0.1866224,86996.0,86990.0,0.3618]
[1764667669116,0.1979462,86991.0,86990.0,0.53318]
[1764667670520,0.1979462,86991.0,86990.0,0.44699]
[1764667671327,0.1979462,86991.0,86990.0,0.53318]
[1764667673523,0.1979466,86988.0,86987.0,0.00010113]
[1764667675629,0.1979466,86988.0,86987.0,0.17248113]
[1764667675830,0.1979466,86988.0,86987.0,0.08629113]
[1764667676429,0.1979466,86988.0,86987.0,0.17248113]
[1764667677025,0.1979466,86988.0,86987.0,0.00010113]
[1764667678130,0.1979466,86988.0,86987.0,0.08629113]
[1764667679528,0.1979466,86988.0,86987.0,0.17248113]
[1764667681339,0.1979476,86980.0,86979.0,0.0001724]
[1764667681538,0.5587476,86980.0,86979.0,0.0001724]
[1764667682436,0.55886962,86980.0,86979.0,0.0001724]
[1764667682733,0.55886962,86980.0,86979.0,0.0011724]
[1764667683933,0.55886962,86980.0,86979.0,0.0600424]
[1764667684131,0.55886962,86980.0,86979.0,0.0011724]
[1764667685532,0.1784591,86969.0,86968.0,0.3608]
[1764667685736,0.17856883,86969.0,86968.0,0.39173551]
[1764667686631,0.17856883,86969.0,86968.0,0.39273551]
[1764667687331,0.17856883,86969.0,86968.0,0.39573551]
[1764667688839,0.27088674,86969.0,86968.0,0.39573551]
[1764667691443,0.1784602,86961.0,86960.0,0.3609724]
[1764667691642,0.17857833,86961.0,86960.0,0.3609724]
[1764667691843,0.1784616,86950.0,86949.0,0.44708]
[1764667692138,0.17858154,86950.0,86949.0,0.56437097]
[1764667692343,0.00011994,86950.0,86949.0,0.56437097]
[1764667692729,0.00011994,86950.0,86949.0,0.59508424]